fUST/lending_fUST_20240922
["ID","MTS","AMOUNT","RATE_DAILY","PERIOD"]
[338862493,1726949450052,-711.15,0.0001648,2]
[338862494,1726949450063,-500.0,0.0001648,2]
[338862495,1726949450075,-151.0,0.0001648,2]
[338862496,1726949450085,-1516.180759,0.0001648,2]
[338862497,1726949450094,-1516.180759,0.0001648,2]
[338862498,1726949450104,-500.0,0.0001648,2]
[338862499,1726949450114,-151.0,0.0001648,2]
[338862500,1726949450125,-151.0,0.0001648,2]
[338862501,1726949450134,-515.68,0.0001648,2]
[338862502,1726949450143,-949.6,0.0001648,2]
[338862503,1726949450153,-262.81972948,0.0001648,2]
[338862504,1726949450163,-500.0,0.0001648,2]
[338862505,1726949450174,-500.0,0.0001648,2]
[338862506,1726949450184,-6111.46,0.0001648,2]
[338862507,1726949450195,-685.47,0.0001648,2]
[338862508,1726949450206,-913.37,0.0001648,2]
[338862509,1726949450216,-500.0,0.0001648,2]
[338862510,1726949450226,-500.0,0.0001648,2]
[338862511,1726949450237,-500.0,0.0001648,2]
[338862512,1726949450248,-576.05,0.0001648,2]
[338862513,1726949450259,-500.0,0.0001648,2]
[338862514,1726949450269,-519.18,0.0001648,2]
[338862515,1726949450278,-500.0,0.0001648,2]
[338862516,1726949450288,-1016.45,0.0001648,2]
[338862517,1726949450298,-500.0,0.0001648,2]
[338862518,1726949450308,-194.24,0.0001648,2]
[338862519,1726949450318,-500.0,0.0001648,2]
[338862520,1726949450327,-16394.94,0.0001648,2]
[338862521,1726949450337,-500.0,0.0001648,2]
[338862522,1726949450347,-1494.11,0.0001648,2]
[338862523,1726949450356,-500.0,0.00016481,2]
[338862524,1726949450366,-541.13,0.00016481,2]
[338862525,1726949450376,-315.9772855,0.00016481,2]
[338862526,1726949450387,-500.0,0.00016481,2]
[338862527,1726949450399,-500.0,0.00016481,2]
[338862528,1726949450409,-545.19,0.00016483,2]
[338862529,1726949450418,-500.0,0.00016483,2]
[338862530,1726949450428,-500.0,0.00016483,2]
[338862531,1726949450440,-500.0,0.00016483,2]
[338862532,1726949450449,-500.0,0.00016483,2]
[338862533,1726949450489,-500.0,0.00016483,2]
[338862534,1726949450499,-500.0,0.00016483,2]
[338862535,1726949450514,-495.43466752,0.00016483,2]
[338862536,1726949450523,-711.85,0.00016483,2]
[338862537,1726949450533,-500.0,0.00016483,2]
[338862538,1726949450545,-267.292574,0.00016485,2]
[338862539,1726949450554,-267.292574,0.00016485,2]
[338862540,1726949450563,-151.0,0.00016485,2]
[338862541,1726949450572,-403.53498,0.00016609,2]
[338862542,1726949450582,-325.174231,0.00016609,2]
[338862543,1726949450591,-650.348464,0.00016609,2]
[338862544,1726949450601,-169.231418,0.00016609,2]
[338862545,1726949450611,-807.069961,0.00016609,2]
[338862546,1726949450622,-169.231416,0.00016609,2]
[338862547,1726949450635,-403.53498,0.00016609,2]
[338862548,1726949450647,-325.174232,0.00016609,2]
[338862549,1726949450657,-151.0,0.00016635,2]
[338862550,1726949450667,-151.0,0.00016745,2]
[338862551,1726949450677,-151.0,0.00016745,2]
[338862552,1726949450687,-736.246254,0.00016745,2]
[338862553,1726949450699,-736.246254,0.00016745,2]
[338862554,1726949450710,-824.076443,0.00016745,2]
[338862555,1726949450721,-824.076443,0.00016745,2]
[338862556,1726949450731,-1616.5543,0.00016745,2]
[338862557,1726949450742,-1616.5543,0.00016745,2]
[338862558,1726949450756,-151.0,0.00016745,2]
[338862559,1726949450766,-151.0,0.00016745,2]
[338862560,1726949450776,-1203.833073,0.00016745,2]
[338862561,1726949450786,-1203.833073,0.00016745,2]
[338862562,1726949450798,-552.69,0.00016754,2]
[338862563,1726949450809,-608.73,0.00016754,2]
[338862564,1726949450820,-200.0,0.00016754,2]
[338862565,1726949450830,-500.0,0.00016754,2]
[338862566,1726949450841,-711.15,0.00016754,2]
[338862567,1726949450851,-500.0,0.00016754,2]
[338862568,1726949450862,-519.6524215,0.00016754,2]
[338862569,1726949450872,-515.68,0.00016754,2]
[338862570,1726949450881,-949.6,0.00016754,2]
[338862571,1726949450892,-500.0,0.00016754,2]
[338862572,1726949450902,-413.0786524,0.00016754,2]
[338862573,1726949450911,-6111.46,0.00016754,2]
[338862574,1726949450921,-685.47,0.00016754,2]
[338862575,1726949450930,-913.37,0.00016754,2]
[338862576,1726949450940,-500.0,0.00016754,2]
[338862577,1726949450951,-500.0,0.00016754,2]
[338862578,1726949450961,-500.0,0.00016754,2]
[338862579,1726949450972,-576.05,0.00016754,2]
[338862580,1726949450984,-500.0,0.00016754,2]
[338862581,1726949450994,-519.18,0.00016754,2]
[338862582,1726949451006,-500.0,0.00016754,2]
[338862583,1726949451015,-1016.45,0.00016754,2]
[338862584,1726949451026,-500.0,0.00016754,2]
[338862585,1726949451037,-500.0,0.00016754,2]
[338862586,1726949451048,-16394.94,0.00016754,2]
[338862587,1726949451058,-500.0,0.00016754,2]
[338862588,1726949451070,-1494.11,0.00016754,2]
[338862589,1726949451080,-500.0,0.00016755,2]
[338862590,1726949451090,-541.13,0.00016755,2]
[338862591,1726949451101,-500.0,0.00016755,2]
[338862592,1726949451113,-500.0,0.00016755,2]
[338862593,1726949451126,-545.19,0.00016757,2]
[338862594,1726949451138,-500.0,0.00016757,2]
[338862595,1726949451149,-500.0,0.00016757,2]
[338862596,1726949451161,-500.0,0.00016757,2]
[338862597,1726949451170,-500.0,0.00016757,2]
[338862598,1726949451181,-500.0,0.00016757,2]
[338862599,1726949451190,-500.0,0.00016757,2]
[338862600,1726949451200,-711.85,0.00016757,2]
[338862601,1726949451210,-500.0,0.00016757,2]
[338862602,1726949451220,-681.6,0.00016762,2]
[338862603,1726949451229,-403.53498,0.00016817,2]
[338862604,1726949451238,-325.174231,0.00016817,2]
[338862605,1726949451247,-650.348464,0.00016817,2]
[338862606,1726949451256,-807.069961,0.00016817,2]
[338862607,1726949451266,-403.53498,0.00016817,2]
[338862608,1726949451275,-325.174232,0.00016817,2]
[338862609,1726949451284,-587.0,0.0001682,2]
[338862610,1726949451294,-300.0,0.000169,6]
[338862611,1726949451303,-151.0,0.00017019,2]
[338862612,1726949451313,-151.0,0.00017019,2]
[338862613,1726949451322,-151.0,0.00017019,2]
[338862614,1726949451334,-151.0,0.00017019,2]
[338862615,1726949451344,-151.0,0.00017019,2]
[338862616,1726949451355,-151.0,0.00017024,2]
[338862617,1726949451366,-403.53498,0.00017024,2]
[338862618,1726949451377,-325.174231,0.00017024,2]
[338862619,1726949451387,-650.348464,0.00017024,2]
[338862620,1726949451397,-807.069961,0.00017024,2]
[338862621,1726949451407,-403.53498,0.00017024,2]
[338862622,1726949451418,-325.174232,0.00017024,2]
[338862623,1726949451427,-552.69,0.00017028,2]
[338862624,1726949451440,-608.73,0.00017028,2]
[338862625,1726949451449,-200.0,0.00017028,2]
[338862626,1726949451459,-158.17754438,0.00017028,2]
[338862627,1726949451468,-711.15,0.00017028,2]
[338862628,1726949451478,-500.0,0.00017028,2]
[338862629,1726949451488,-515.68,0.00017028,2]
[338862630,1726949451498,-949.6,0.00017028,2]
[338862631,1726949451510,-6111.46,0.00017028,2]
[338862632,1726949451519,-685.47,0.00017028,2]
[338862633,1726949451530,-913.37,0.00017028,2]
[338862634,1726949451540,-575.07,0.00017028,2]
[338862635,1726949451550,-500.0,0.00017028,2]
[338862636,1726949451561,-500.0,0.00017028,2]
[338862637,1726949451572,-576.05,0.00017028,2]
[338862638,1726949451581,-500.0,0.00017028,2]
[338862639,1726949451590,-519.18,0.00017028,2]
[338862640,1726949451600,-500.0,0.00017028,2]
[338862641,1726949451609,-1016.45,0.00017028,2]
[338862642,1726949451618,-500.0,0.00017028,2]
[338862643,1726949451626,-500.0,0.00017028,2]
[338862644,1726949451635,-16394.94,0.00017028,2]
[338862645,1726949451644,-500.0,0.00017028,2]
[338862646,1726949451653,-1494.11,0.00017028,2]
[338862647,1726949451662,-500.0,0.00017029,2]
[338862648,1726949451671,-541.13,0.00017029,2]
[338862649,1726949451680,-500.0,0.00017029,2]
[338862650,1726949451689,-500.0,0.00017029,2]
[338862651,1726949451697,-545.19,0.00017031,2]
[338862652,1726949451707,-500.0,0.00017031,2]
[338862653,1726949451716,-500.0,0.00017031,2]
[338862654,1726949451725,-567.28729809,0.00017031,2]
[338862655,1726949451734,-500.0,0.00017031,2]
[338862656,1726949451743,-500.0,0.00017031,2]
[338862657,1726949451753,-500.0,0.00017031,2]
[338862658,1726949451762,-711.85,0.00017031,2]
[338862659,1726949451772,-500.0,0.00017031,2]
[338862660,1726949451781,-455.3,0.00017032,2]
[338862661,1726949451790,-681.6,0.00017086,2]
[338862662,1726949451799,-2075.8074504,0.000171,2]
[338862663,1726949451809,-823.1448596,0.00017111,2]
[338862664,1726949451818,-10045.58466108,0.00017176,10]
[338862665,1726949451827,-151.0,0.00017176,2]
[338862666,1726949451836,-1277.740459,0.00017176,2]
[338862667,1726949451845,-151.0,0.00017176,2]
[338862668,1726949451855,-1277.740459,0.00017176,2]
[338862669,1726949451864,-151.0,0.00017176,2]
[338862670,1726949451873,-153.0,0.00017206,2]
[338862671,1726949451883,-153.0,0.00017206,2]
[338862672,1726949451893,-153.0,0.00017206,2]
[338862673,1726949451902,-153.0,0.00017206,2]
[338862674,1726949451911,-153.0,0.00017206,2]
[338862675,1726949451921,-153.0,0.00017206,2]
[338862676,1726949451930,-306.0,0.00017206,2]
[338862677,1726949451939,-153.0,0.00017206,2]
[338862678,1726949451949,-306.0,0.00017206,2]
[338862679,1726949451958,-306.0,0.00017206,2]
[338862680,1726949451967,-153.0,0.00017206,2]
[338862681,1726949451977,-306.0,0.00017206,2]
[338862682,1726949451986,-153.0,0.00017206,2]
[338862683,1726949451996,-403.53498,0.00017232,2]
[338862684,1726949452006,-325.174231,0.00017232,2]
[338862685,1726949452015,-650.348464,0.00017232,2]
[338862686,1726949452026,-807.069961,0.00017232,2]
[338862687,1726949452038,-403.53498,0.00017232,2]
[338862688,1726949452047,-325.174232,0.00017232,2]
[338862689,1726949452056,-552.69,0.00017302,2]
[338862690,1726949452066,-608.73,0.00017302,2]
[338862691,1726949452076,-200.0,0.00017302,2]
[338862692,1726949452086,-711.15,0.00017302,2]
[338862693,1726949452095,-500.0,0.00017302,2]
[338862694,1726949452107,-515.68,0.00017302,2]
[338862695,1726949452117,-949.6,0.00017302,2]
[338862696,1726949452126,-6111.46,0.00017302,2]
[338862697,1726949452138,-685.47,0.00017302,2]
[338862698,1726949452148,-913.37,0.00017302,2]
[338862699,1726949452159,-500.0,0.00017302,2]
[338862700,1726949452170,-500.0,0.00017302,2]
[338862701,1726949452178,-576.05,0.00017302,2]
[338862702,1726949452188,-500.0,0.00017302,2]
[338862703,1726949452199,-151.0,0.00017302,2]
[338862704,1726949452209,-519.18,0.00017302,2]
[338862705,1726949452218,-151.0,0.00017302,2]
[338862706,1726949452230,-151.0,0.00017302,2]
[338862707,1726949452241,-1016.45,0.00017302,2]
[338862708,1726949452252,-500.0,0.00017302,2]
[338862709,1726949452261,-151.0,0.00017302,2]
[338862710,1726949452271,-500.0,0.00017302,2]
[338862711,1726949452282,-151.0,0.00017302,2]
[338862712,1726949452294,-151.0,0.00017302,2]
[338862713,1726949452305,-500.0,0.00017302,2]
[338862714,1726949452315,-16394.94,0.00017302,2]
[338862715,1726949452325,-1494.11,0.00017302,2]
[338862716,1726949452335,-500.0,0.00017302,2]
[338862717,1726949452346,-632.606093,0.00017302,2]
[338862718,1726949452355,-632.606093,0.00017302,2]
[338862719,1726949452365,-151.0,0.00017302,2]
[338862720,1726949452504,-286.621205,0.00017302,2]
[338862721,1726949452515,-151.0,0.00017302,2]
[338862722,1726949452524,-239.065775,0.00017302,2]
[338862723,1726949452533,-286.621205,0.00017302,2]
[338862724,1726949452543,-239.065775,0.00017302,2]
[338862725,1726949452552,-500.0,0.00017303,2]
[338862726,1726949452562,-541.13,0.00017303,2]
[338862727,1726949452571,-426.46244305,0.00017303,2]
[338862728,1726949452584,-500.0,0.00017303,2]
[338862729,1726949452594,-545.19,0.00017305,2]
[338862730,1726949452603,-500.0,0.00017305,2]
[338862731,1726949452613,-500.0,0.00017305,2]
[338862732,1726949452622,-500.0,0.00017305,2]
[338862733,1726949452632,-500.0,0.00017305,2]
[338862734,1726949452641,-500.0,0.00017305,2]
[338862735,1726949452651,-711.85,0.00017305,2]
[338862736,1726949452661,-500.0,0.00017305,2]
[338862737,1726949452672,-300.0,0.00017329,2]
[338862738,1726949452682,-150.0,0.00017329,2]
[338862739,1726949452691,-3200.0,0.00017329,2]
[338862740,1726949452701,-162.9789201,0.00017342,2]
[338862741,1726949452711,-500.0,0.0001737,2]
[338862742,1726949452721,-500.0,0.0001737,2]
[338862743,1726949452731,-150.0,0.00017392,2]
[338862744,1726949452740,-681.6,0.00017409,2]
[338862745,1726949452749,-403.53498,0.0001744,2]
[338862746,1726949452759,-325.174231,0.0001744,2]
[338862747,1726949452768,-650.348464,0.0001744,2]
[338862748,1726949452778,-807.069961,0.0001744,2]
[338862749,1726949452787,-403.53498,0.0001744,2]
[338862750,1726949452797,-325.174232,0.0001744,2]
[338862751,1726949452810,-674.26425,0.0001744,2]
[338862752,1726949452819,-674.26425,0.0001744,2]
[338862753,1726949452828,-151.0,0.0001744,2]
[338862754,1726949452838,-151.0,0.0001744,2]
[338862755,1726949452847,-151.0,0.0001744,2]
[338862756,1726949452857,-315.225152,0.0001744,2]
[338862757,1726949452866,-315.225152,0.0001744,2]
[338862758,1726949452875,-189.76273,0.0001744,2]
[338862759,1726949452884,-189.76273,0.0001744,2]
[338862760,1726949452893,-1454.083673,0.0001744,2]
[338862761,1726949452902,-1454.083673,0.0001744,2]
[338862762,1726949452912,-271.163604,0.0001744,2]
[338862763,1726949452921,-271.163604,0.0001744,2]
[338862764,1726949452932,-229.0,0.0001745,2]
[338862765,1726949452943,-6844.4157779,0.00017455,2]
[338862766,1726949452954,-200.10237611,0.00017458,2]
[338862767,1726949452964,-2317.7779218,0.00017518,2]
[338862768,1726949452973,-552.69,0.00017576,2]
[338862769,1726949452984,-608.73,0.00017576,2]
[338862770,1726949452996,-200.0,0.00017576,2]
[338862771,1726949453006,-711.15,0.00017576,2]
[338862772,1726949453016,-500.0,0.00017576,2]
[338862773,1726949453026,-151.0,0.00017576,2]
[338862774,1726949453035,-1516.180759,0.00017576,2]
[338862775,1726949453045,-1516.180759,0.00017576,2]
[338862776,1726949453055,-151.0,0.00017576,2]
[338862777,1726949453065,-156.477397,0.00017576,2]
[338862778,1726949453074,-151.0,0.00017576,2]
[338862779,1726949453084,-515.68,0.00017576,2]
[338862780,1726949453094,-949.6,0.00017576,2]
[338862781,1726949453103,-151.0,0.00017576,2]
[338862782,1726949453112,-5000.0,0.00017576,2]
[338862783,1726949453122,-1674.517847,0.00017576,2]
[338862784,1726949453131,-151.0,0.00017576,2]
[338862785,1726949453140,-151.0,0.00017576,2]
[338862786,1726949453149,-6111.46,0.00017576,2]
[338862787,1726949453159,-151.0,0.00017576,2]
[338862788,1726949453168,-151.0,0.00017576,2]
[338862789,1726949453176,-517.426835,0.00017576,2]
[338862790,1726949453185,-517.426835,0.00017576,2]
[338862791,1726949453195,-685.47,0.00017576,2]
[338862792,1726949453204,-758.112631,0.00017576,2]
[338862793,1726949453213,-758.112631,0.00017576,2]
[338862794,1726949453225,-439.787767,0.00017576,2]
[338862795,1726949453235,-913.37,0.00017576,2]
[338862796,1726949453246,-439.787767,0.00017576,2]
[338862797,1726949453258,-1873.720172,0.00017576,2]
[338862798,1726949453268,-500.0,0.00017576,2]
[338862799,1726949453278,-1873.720172,0.00017576,2]
[338862800,1726949453288,-610.64104271,0.00017576,2]
[338862801,1726949453297,-258.837215,0.00017576,2]
[338862802,1726949453306,-258.837215,0.00017576,2]
[338862803,1726949453316,-576.05,0.00017576,2]
[338862804,1726949453326,-500.0,0.00017576,2]
[338862805,1726949453335,-519.18,0.00017576,2]
[338862806,1726949453344,-199.499447,0.00017576,2]
[338862807,1726949453354,-199.499447,0.00017576,2]
[338862808,1726949453363,-407.085646,0.00017576,2]
[338862809,1726949453372,-407.085646,0.00017576,2]
[338862810,1726949453381,-5654.261616,0.00017576,2]
[338862811,1726949453390,-5654.261616,0.00017576,2]
[338862812,1726949453399,-639.944675,0.00017576,2]
[338862813,1726949453409,-1016.45,0.00017576,2]
[338862814,1726949453418,-500.0,0.00017576,2]
[338862815,1726949453427,-639.944675,0.00017576,2]
[338862816,1726949453440,-500.0,0.00017576,2]
[338862817,1726949453448,-500.0,0.00017576,2]
[338862818,1726949453457,-16394.94,0.00017576,2]
[338862819,1726949453467,-1494.11,0.00017576,2]
[338862820,1726949453476,-615.11566025,0.00017576,2]
[338862821,1726949453485,-370.874248,0.00017576,2]
[338862822,1726949453494,-370.874248,0.00017576,2]
[338862823,1726949453504,-500.0,0.00017577,2]
[338862824,1726949453514,-541.13,0.00017577,2]
[338862825,1726949453524,-500.0,0.00017577,2]
[338862826,1726949453533,-545.19,0.00017579,2]
[338862827,1726949453542,-500.0,0.00017579,2]
[338862828,1726949453551,-500.0,0.00017579,2]
[338862829,1726949453561,-500.0,0.00017579,2]
[338862830,1726949453570,-500.0,0.00017579,2]
[338862831,1726949453579,-500.0,0.00017579,2]
[338862832,1726949453590,-711.85,0.00017579,2]
[338862833,1726949453599,-500.0,0.00017579,2]
[338862834,1726949453608,-2075.8074504,0.000176,2]
[338862835,1726949453618,-1500.0,0.00017646,2]
[338862836,1726949453627,-1351.4183742,0.00017646,2]
[338862837,1726949453636,-151.0,0.00017703,2]
[338862838,1726949453645,-151.0,0.00017703,2]
[338862839,1726949453654,-151.0,0.00017703,2]
[338862840,1726949453664,-151.0,0.00017703,2]
[338862841,1726949453673,-681.6,0.00017733,2]
[338862842,1726949453682,-29021.60988944,0.0001782,7]
[338862843,1726949453702,-552.69,0.0001785,2]
[338862844,1726949453712,-608.73,0.0001785,2]
[338862845,1726949453722,-200.0,0.0001785,2]
[338862846,1726949453731,-711.15,0.0001785,2]
[338862847,1726949453741,-602.48346368,0.0001785,2]
[338862848,1726949453755,-515.68,0.0001785,2]
[338862849,1726949453765,-949.6,0.0001785,2]
[338862850,1726949453775,-6111.46,0.0001785,2]
[338862851,1726949453785,-685.47,0.0001785,2]
[338862852,1726949453795,-913.37,0.0001785,2]
[338862853,1726949453804,-500.0,0.0001785,2]
[338862854,1726949453816,-576.05,0.0001785,2]
[338862855,1726949453828,-500.0,0.0001785,2]
[338862856,1726949453839,-519.18,0.0001785,2]
[338862857,1726949453850,-1016.45,0.0001785,2]
[338862858,1726949453860,-500.0,0.0001785,2]
[338862859,1726949453869,-500.0,0.0001785,2]
[338862860,1726949453880,-500.0,0.0001785,2]
[338862861,1726949453889,-16394.94,0.0001785,2]
[338862862,1726949453900,-1494.11,0.0001785,2]
[338862863,1726949453910,-541.13,0.00017851,2]
[338862864,1726949453920,-500.0,0.00017851,2]
[338862865,1726949453930,-150.0,0.00017852,2]
[338862866,1726949453940,-151.0,0.00017853,2]
[338862867,1726949453950,-151.0,0.00017853,2]
[338862868,1726949453959,-267.292574,0.00017853,2]
[338862869,1726949453968,-267.292574,0.00017853,2]
[338862870,1726949453978,-151.0,0.00017853,2]
[338862871,1726949453987,-545.19,0.00017853,2]
[338862872,1726949453997,-372.31647369,0.00017853,2]
[338862873,1726949454006,-500.0,0.00017853,2]
[338862874,1726949454026,-500.0,0.00017853,2]
[338862875,1726949454044,-500.0,0.00017853,2]
[338862876,1726949454059,-500.0,0.00017853,2]
[338862877,1726949454077,-711.85,0.00017853,2]
[338862878,1726949454089,-500.0,0.00017853,2]
[338862879,1726949454101,-151.0,0.00017853,2]
[338862880,1726949454115,-736.246254,0.00017853,2]
[338862881,1726949454127,-736.246254,0.00017853,2]
[338862882,1726949454142,-824.076443,0.00017853,2]
[338862883,1726949454155,-824.076443,0.00017853,2]
[338862884,1726949454168,-1616.5543,0.00017853,2]
[338862885,1726949454180,-1616.5543,0.00017853,2]
[338862886,1726949454194,-151.0,0.00017853,2]
[338862887,1726949454207,-151.0,0.00017853,2]
[338862888,1726949454220,-1203.833073,0.00017853,2]
[338862889,1726949454232,-1203.833073,0.00017853,2]
[338862890,1726949454245,-500.0,0.00017878,2]
[338862891,1726949454259,-500.0,0.00017878,2]
[338862892,1726949454273,-150.0,0.00017879,2]
[338862893,1726949454290,-795.27308309,0.00017887,2]
[338862894,1726949454302,-150.0,0.00017907,2]
[338862895,1726949454314,-153.0,0.00017933,2]
[338862896,1726949454324,-153.0,0.00017933,2]
[338862897,1726949454335,-153.0,0.00017933,2]
[338862898,1726949454347,-150.0,0.00017934,2]
[338862899,1726949454360,-163.70998331,0.00017999,2]
[338862900,1726949454372,-4764.0038281,0.00017999,2]
[338862901,1726949454386,-50937.23013393,0.00018,2]
[338862902,1726949454398,-8365.37098708,0.00018,2]
[338862903,1726949454411,-8424.38236021,0.00018,10]
[338862904,1726949454425,-5301.42270247,0.00018,2]
[338862905,1726949454441,-2000.0,0.00018,2]
[338862906,1726949454454,-2000.0,0.00018,2]
[338862907,1726949454465,-184.0,0.00018,2]
[338862908,1726949454475,-2000.0,0.00018,2]
[338862909,1726949454486,-7854.36939142,0.00018,10]
[338862910,1726949454498,-151.0,0.00018,2]
[338862911,1726949454510,-310.0,0.00018,2]
[338862912,1726949454524,-310.0,0.00018,2]
[338862913,1726949454537,-176.534812,0.00018,2]
[338862914,1726949454548,-1050.96825691,0.00018,2]
[338862915,1726949454561,-207.02102969,0.00018,2]
[338862916,1726949454573,-1000.0,0.00018,2]
[338862917,1726949454587,-681.6,0.00018057,2]
[338862918,1726949454600,-8172.33761618,0.00018065,7]
[338862919,1726949454951,500.0,0.00014014,2]
[338862920,1726949455006,500.0,0.00014014,2]
[338862921,1726949455047,500.0,0.00014014,2]
[338862922,1726949455194,500.0,0.00014014,2]
[338862923,1726949455233,500.0,0.00014014,2]
[338862924,1726949455444,500.0,0.00014014,2]
[338862925,1726949455550,500.0,0.00014014,2]
[338862926,1726949457114,500.0,0.00014014,2]
[338862927,1726949461513,500.0,0.00014014,2]
[338862930,1726949462176,500.0,0.00014014,2]
[338862931,1726949463309,500.0,0.00014014,2]
[338862932,1726949465421,500.0,0.00014014,2]
[338862934,1726949470747,500.0,0.00014014,2]
[338862936,1726949473125,500.0,0.00014014,2]
[338862937,1726949474864,500.0,0.00014014,2]
[338862938,1726949475412,472.96,0.00014014,2]
[338862939,1726949509849,500.0,0.00014014,2]
[338862940,1726949517797,500.0,0.00014014,2]
[338862941,1726949518351,500.0,0.00014014,2]
[338862942,1726949521162,500.0,0.00014014,2]
[338862943,1726949543304,500.0,0.00014014,2]
[338862944,1726949561077,500.0,0.00014014,2]
[338862945,1726949579500,500.0,0.00014014,2]
[338862946,1726949585300,500.0,0.00014014,2]
[338862947,1726949588358,500.0,0.00014014,2]
[338862948,1726949592228,497.31795214,0.00014014,2]
[338862949,1726949594652,500.0,0.00014014,2]
[338862950,1726949602597,500.0,0.00014014,2]
[338862951,1726949605024,500.0,0.00014014,2]
[338862952,1726949607111,500.0,0.00014014,2]
[338862953,1726949607625,198.50481637,0.00014014,2]
[338862955,1726949626791,500.0,0.00014014,2]
[338862956,1726949631319,500.0,0.00014014,2]
[338862958,1726949640654,2291.8,0.00014014,2]
[338862959,1726949640898,500.0,0.00014014,2]
[338862960,1726949646763,500.0,0.00014014,2]
[338862961,1726949649730,500.0,0.00014014,2]
[338862962,1726949655118,500.0,0.00014014,2]
[338862963,1726949657209,23734.5983054,0.00013902,2]
[338862964,1726949657495,500.0,0.00014014,2]
[338862965,1726949662292,500.0,0.00014014,2]
[338862966,1726949664357,500.0,0.00014014,2]
[338862967,1726949669344,500.0,0.00014014,2]
[338862968,1726949691499,500.0,0.00014014,2]
[338862969,1726949694443,500.0,0.00014014,2]
[338862970,1726949699571,500.0,0.00014014,2]
[338862971,1726949700365,500.0,0.00014014,2]
[338862972,1726949708809,500.0,0.00014014,2]
[338862973,1726949721573,500.0,0.00014014,2]
[338862974,1726949724869,500.0,0.00014014,2]
[338862975,1726949726338,500.0,0.00014014,2]
[338862976,1726949727313,500.0,0.00014014,2]
[338862977,1726949729998,500.0,0.00014014,2]
[338862978,1726949748451,500.0,0.00014014,2]
[338862979,1726949749501,500.0,0.00014014,2]
[338862980,1726949749806,626.86672932,0.00014014,2]
[338862981,1726949781838,500.0,0.00014014,2]
[338862982,1726949787911,269.1,0.00010959,2]
[338862983,1726949816715,500.0,0.00014014,2]
[338862985,1726949829059,500.0,0.00014014,2]
[338862986,1726949856479,554.396346,0.00014014,2]
[338862987,1726949885923,500.0,0.00014014,2]
[338862988,1726949927873,500.0,0.00014014,2]
[338862989,1726949937183,500.0,0.00014014,2]
[338862990,1726949993004,500.0,0.00014014,2]
[338862991,1726949997926,90142.67,0.00014,60]
[338862992,1726950046601,500.0,0.00014014,2]
[338862994,1726950167936,172.8752534,0.00013207,2]
[338863005,1726950573008,964.50444595,0.0002202,120]
[338863047,1726950632101,-300.0,0.0001456,2]
[338863049,1726950632111,-300.0,0.0001456,2]
[338863051,1726950632120,-446.58,0.00014561,2]
[338863053,1726950632130,-184.18209008,0.00014561,2]
[338863143,1726950641753,-315.81790992,0.00014561,2]